bitfinex/quotes_ETHUSD_20241204
["timestamp","ask_amount","ask_price","bid_price","bid_amount"]
[1733328784957,0.53629043,3810.7,3810.2,2.62446]
[1733328785118,0.53629043,3810.7,3810.3,2.62446]
[1733328785462,0.53629043,3810.7,3809.9,2.62473]
[1733328785790,0.53629043,3810.7,3809.3,3.0]
[1733328785995,0.53629043,3810.7,3810.6,2.62425]
[1733328786679,0.53629043,3810.7,3810.6,6.17425]
[1733328787211,0.40185954,3811.2,3810.6,3.0]
[1733328787446,0.52566402,3811.0,3810.4,3.0]
[1733328787617,0.52566402,3811.0,3809.8,0.55]
[1733328787905,0.52566402,3811.0,3809.7,1.5026]
[1733328787906,0.38547578,3810.9,3810.1,6.17454]
[1733328788107,0.52566402,3811.0,3810.1,6.17459]
[1733328788425,0.38544564,3810.9,3810.0,0.55]
[1733328788723,0.54943016,3810.8,3809.9,3.0]
[1733328789010,9.88898507,3810.7,3808.6,2.42563]
[1733328789166,0.24088284,3810.7,3809.8,2.62477]
[1733328789366,0.40146564,3810.3,3809.5,2.62498]
[1733328789567,0.5494178,3810.6,3808.5,1.5026]
[1733328789568,0.38540701,3810.2,3808.5,1.5026]
[1733328789768,0.38540701,3810.1,3810.0,2.62467]
[1733328790081,0.40146564,3811.0,3809.5,1.5614]
[1733328790396,9.33954077,3810.9,3809.7,3.0]
[1733328790594,0.40146564,3811.0,3808.6,2.62563]
[1733328790595,0.5354238,3810.0,3808.6,2.62563]
[1733328790909,0.3854118,3809.9,3809.3,2.6251]
[1733328791063,3.02579564,3810.5,3809.3,2.6251]
[1733328791064,0.38542177,3809.8,3809.3,2.6251]
[1733328791402,0.24091461,3810.4,3808.5,1.5701]
[1733328791403,0.38547645,3809.7,3809.1,2.62528]
[1733328791710,2.6244,3810.4,3807.8,2.62615]
[1733328791711,0.38547645,3809.6,3808.8,2.62545]
[1733328791881,0.54952899,3809.5,3807.9,4.16246]
[1733328792066,0.38547645,3809.4,3808.1,2.62598]
[1733328792268,8.79,3810.0,3809.3,2.62515]
[1733328792556,1.09876471,3809.9,3809.5,2.625]
[1733328792721,0.95426738,3809.8,3809.7,2.62487]
[1733328792918,0.79022531,3809.8,3809.7,2.62487]
[1733328793258,0.16404207,3810.6,3810.5,2.62432]
[1733328793409,1.17557607,3810.6,3810.5,2.62432]
[1733328794027,1.7075426,3810.6,3809.8,3.55]
[1733328794277,1.7075426,3810.6,3809.7,3.0]
[1733328794278,0.40171016,3810.3,3809.7,3.0]
[1733328794455,0.79039176,3810.2,3810.1,2.62459]
[1733328794771,0.79039176,3810.2,3809.1,1.5978]
[1733328794772,1.9619104,3810.2,3809.9,3.0]
[1733328794934,1.9619104,3810.2,3809.1,1.5978]
[1733328794935,0.79039176,3810.1,3809.1,1.5978]
[1733328795142,1.41697534,3810.0,3809.1,2.62523]
[1733328795352,1.57789108,3809.9,3809.1,2.62523]
[1733328795566,1.57789108,3809.9,3808.6,4.20659]
[1733328795567,0.40171016,3809.7,3808.7,2.62556]
[1733328795726,1.17621362,3809.6,3809.3,2.62514]
[1733328795925,0.2410261,3809.5,3808.9,2.62538]
[1733328796268,0.2410261,3809.5,3808.6,1.581]
[1733328796269,0.38536213,3809.4,3808.6,1.581]
[1733328796473,0.24113866,3809.4,3809.2,2.62516]
[1733328796766,0.2410261,3809.5,3809.1,2.62522]
[1733328796968,0.38599729,3809.3,3808.9,2.62542]
[1733328797270,8.79,3809.0,3807.8,2.62618]
[1733328797488,11.4155,3808.8,3807.1,2.62665]
[1733328797680,11.4155,3808.8,3806.8,1.5037]
[1733328797681,1.43407108,3808.7,3806.8,1.5037]
[1733328797863,0.79133482,3808.6,3806.8,1.5037]
[1733328798027,0.79131524,3808.5,3807.6,2.62631]
[1733328798378,0.40533753,3808.4,3806.4,1.545]
[1733328798545,1.03236092,3808.3,3807.3,2.62652]
[1733328798727,1.03240797,3808.2,3806.4,1.545]
[1733328798933,0.2410261,3808.1,3807.1,2.6266]
[1733328799268,0.62666206,3808.0,3806.4,1.545]
[1733328799472,0.24102387,3807.9,3807.2,2.62659]
[1733328799675,0.40514747,3807.8,3806.4,1.545]
[1733328800015,0.40514747,3807.8,3806.8,2.62686]
[1733328800016,0.95145305,3807.7,3806.8,2.62686]
[1733328800142,0.78732945,3807.6,3806.8,2.62686]
[1733328800474,0.91929296,3807.5,3806.1,2.62732]
[1733328800657,0.53366996,3807.5,3805.9,1.5931]
[1733328800964,0.53366996,3807.5,3806.6,2.62699]
[1733328801164,0.24102387,3807.4,3806.4,2.62714]
[1733328801341,0.53366996,3807.5,3806.2,2.62728]
[1733328801342,0.24102387,3807.3,3806.2,2.62728]
[1733328801541,0.62546296,3807.2,3806.1,2.62735]
[1733328801787,0.62546296,3807.2,3805.6,2.62768]
[1733328801788,1.44522917,3807.1,3806.2,2.62728]
[1733328801970,1.2042053,3807.1,3805.4,0.52731862]
[1733328802167,0.24025853,3807.0,3805.7,2.62758]
[1733328802334,0.24025853,3806.9,3805.9,2.62747]
[1733328802541,0.40711438,3806.9,3805.5,2.62771]
[1733328802745,8.79,3807.0,3805.5,2.62771]
[1733328803070,8.79,3807.0,3806.7,2.62693]
[1733328803231,8.79,3807.0,3806.6,2.62701]
[1733328803569,8.79,3807.0,3805.5,2.62771]
[1733328803570,8.79,3807.0,3806.4,2.62714]
[1733328803782,8.79,3807.0,3806.1,1.524]
[1733328803959,0.53366996,3807.5,3806.5,2.6922814]
[1733328804287,0.94008256,3807.4,3806.5,0.0652014]
[1733328804488,0.62408756,3807.3,3806.5,2.6922714]
[1733328804795,0.53366996,3807.5,3807.3,2.62651]
[1733328804965,0.38449729,3807.9,3806.9,2.62679]
[1733328805160,0.51825936,3807.4,3806.5,0.0652014]
[1733328805375,0.51825936,3807.4,3806.5,2.6922714]
[1733328805587,0.51825936,3807.4,3806.6,2.62701]
[1733328805783,0.51825936,3807.4,3807.3,2.62653]
[1733328806088,0.51825936,3807.4,3806.7,3.0]
[1733328806298,0.51825936,3807.4,3807.2,2.62659]
[1733328806475,0.51825936,3807.4,3806.8,3.17687]
[1733328806476,0.51825936,3807.4,3806.5,0.0652014]
[1733328806645,0.51825936,3807.4,3806.7,2.62694]
[1733328806853,0.51825936,3807.4,3806.8,2.62686]
[1733328807052,0.51825936,3807.4,3806.6,2.627]
[1733328807249,0.51825936,3807.4,3806.5,0.0652014]
[1733328807541,0.31446694,3807.3,3806.5,0.0652014]
[1733328807659,0.51825936,3807.4,3806.5,2.6922514]
[1733328807846,0.51825936,3807.4,3806.8,2.62685]
[1733328808053,0.51825936,3807.4,3806.7,2.62693]
[1733328808494,0.51825936,3807.4,3807.3,2.62653]
[1733328809376,0.51825936,3807.4,3807.2,2.62659]
[1733328809703,0.51825936,3807.4,3806.5,1.6570014]
[1733328809704,0.51825936,3807.4,3807.3,3.20279559]
[1733328809894,0.51825936,3807.4,3807.3,6.17653]
[1733328810188,8.79,3809.5,3807.8,3.0]
[1733328810348,2.62515,3809.3,3807.4,0.55]
[1733328810549,0.53611755,3807.9,3806.5,4.6570014]
[1733328810910,0.53611755,3807.9,3807.2,0.55]
[1733328811192,0.53611755,3807.9,3807.8,2.62618]
[1733328811561,0.53611755,3807.9,3807.8,3.17618]
[1733328812083,0.53611755,3807.9,3807.8,2.62618]
[1733328812249,0.53611755,3807.9,3807.8,3.17618]
[1733328813387,0.53611755,3807.9,3807.8,7.71448]
[1733328813578,0.38387844,3809.5,3807.9,3.55]
[1733328813760,2.62523,3809.2,3808.1,2.62593]
[1733328814108,0.23976939,3809.4,3807.8,1.5383]
[1733328814397,2.6257,3808.5,3807.1,1.5163]
[1733328814710,0.5329077,3808.2,3806.6,1.5163]
[1733328814865,0.5329077,3808.2,3807.7,2.62624]
[1733328815084,2.62537,3809.0,3807.8,2.62617]
[1733328815285,2.62545,3808.9,3807.8,2.62617]
[1733328815587,8.79,3809.2,3807.0,2.62671]
[1733328815588,0.53212015,3807.9,3807.0,2.62671]
[1733328815782,0.53212015,3807.9,3807.3,2.6265]
[1733328816023,2.6262,3807.8,3806.6,2.62701]
[1733328816182,2.6262,3807.8,3806.5,0.0652014]
[1733328816518,2.6262,3807.8,3806.7,2.62693]
[1733328816786,2.62626,3807.7,3806.5,2.6922714]
[1733328816992,0.31583801,3807.6,3806.7,2.62692]
[1733328817210,0.31583801,3807.6,3806.5,0.0652014]
[1733328817418,2.62626,3807.7,3806.5,0.0652014]
[1733328817734,0.53212015,3807.9,3806.5,0.0652014]
[1733328817933,8.79,3808.0,3806.5,0.0652014]
[1733328818225,2.62612,3807.9,3806.7,2.62688]
[1733328818425,2.62612,3807.9,3806.5,0.0652014]
[1733328818426,2.62611,3807.9,3806.6,2.62701]
[1733328818732,1.141611,3807.8,3806.8,2.62686]
[1733328818889,1.141611,3807.8,3806.5,0.0652014]
[1733328818890,2.62633,3807.6,3806.5,0.0652014]
[1733328819221,3.767801,3807.8,3806.6,2.627]
[1733328819427,3.767801,3807.8,3806.5,0.0652014]
[1733328819599,1.141611,3807.8,3806.7,2.6269]
[1733328819809,0.51982843,3806.9,3806.7,2.6269]
[1733328820321,0.51982843,3806.9,3806.8,2.62687]
[1733328820701,0.51982843,3806.9,3806.5,0.0652014]
[1733328820910,0.51982843,3806.9,3806.6,0.55]
[1733328821102,0.51982843,3806.9,3806.5,0.0652014]
[1733328821734,0.1641502,3806.8,3806.5,0.0652014]
[1733328822193,0.53530582,3806.8,3806.5,0.0652014]
[1733328822520,0.1641502,3806.7,3806.5,0.0652014]
[1733328822749,0.51982843,3806.9,3806.5,0.0652014]
[1733328823235,0.16417492,3806.8,3806.5,0.0652014]
[1733328823434,0.16417492,3806.7,3806.5,0.0652014]
[1733328823634,0.51982843,3806.9,3805.1,2.62801]
[1733328823851,9.92524473,3806.8,3805.0,10.0]
[1733328824061,2.62709,3806.5,3805.2,2.62796]
[1733328824230,0.96716806,3806.4,3805.2,2.62796]
[1733328824551,0.16419817,3806.3,3805.5,2.62777]
[1733328824754,0.16419817,3806.3,3805.1,2.62805]
[1733328824755,0.16419817,3806.3,3805.6,2.6277]
[1733328825124,0.16419817,3806.3,3805.1,0.55]
[1733328825330,0.16419817,3806.3,3805.5,2.62777]
[1733328825528,0.51683427,3805.7,3805.5,2.62777]
[1733328825754,0.51683427,3805.7,3805.4,3.55]
[1733328826059,0.51683427,3805.7,3805.4,2.62781]
[1733328826389,0.51683427,3805.7,3805.6,6.1777]
[1733328827976,0.25199272,3805.7,3805.6,6.1777]
[1733328828278,0.523536,3806.2,3805.7,3.0]
[1733328828479,0.523536,3806.2,3805.7,0.55]
[1733328828682,3.33,3806.7,3805.9,0.55]
[1733328828885,0.40180382,3806.4,3805.9,0.55]
[1733328829182,0.40180382,3806.4,3805.8,0.55]
[1733328829183,0.16417209,3806.3,3805.8,0.55]
[1733328829486,0.40180382,3806.4,3804.4,3.03408111]
[1733328829487,0.16417209,3806.2,3806.0,3.17741]
[1733328829655,0.40180382,3806.4,3806.0,3.17741]
[1733328829656,0.16417209,3806.1,3806.0,3.17741]
[1733328829981,3.33,3806.5,3806.0,3.17741]
[1733328830208,0.5317302,3806.3,3805.8,2.62754]
[1733328830423,0.16417275,3806.2,3805.0,11.617]
[1733328830712,2.79156275,3806.1,3805.0,10.0]
[1733328830882,0.56597657,3806.0,3805.1,2.62804]
[1733328831080,0.56597657,3805.9,3805.0,10.0]
[1733328831303,0.16417275,3805.8,3805.0,12.6281]
[1733328831476,0.16417275,3805.7,3805.0,12.6281]
[1733328831676,0.16417275,3805.6,3805.0,12.6281]
[1733328831981,0.16417275,3805.6,3805.0,10.0]
[1733328832183,0.16417275,3805.5,3805.0,10.0]
[1733328832509,0.40180382,3805.8,3805.1,2.65432751]
[1733328832819,0.5317302,3806.3,3805.1,2.65432751]
[1733328832820,0.16420634,3805.7,3805.1,2.62805]
[1733328833108,0.16420634,3805.6,3805.0,10.0]
[1733328833307,0.16420634,3805.5,3805.0,12.6281]
[1733328833468,0.40180382,3805.9,3805.0,12.6281]
[1733328833668,0.16420966,3805.8,3805.0,12.6281]
[1733328833950,0.16421355,3805.7,3805.0,12.6281]
[1733328834215,0.16421355,3805.6,3805.1,2.62804]
[1733328834416,0.52554973,3805.3,3805.1,2.62804]
[1733328834777,0.52554973,3805.3,3805.0,12.62811]
[1733328836082,0.52554973,3805.3,3805.0,10.0]
[1733328836323,0.52554973,3805.3,3805.0,9.453125]
[1733328836324,2.62805,3805.1,3805.0,9.453125]
[1733328836612,0.77748723,3805.1,3805.0,9.453125]
[1733328836912,3.16430826,3805.1,3805.0,7.73014262]
[1733328837214,3.40559349,3805.1,3805.0,6.55821389]
[1733328837570,1.17966862,3805.1,3805.0,6.55821389]
[1733328837788,3.40559349,3805.1,3805.0,6.55821389]
[1733328837991,3.40559349,3805.1,3805.0,4.51524389]
[1733328838186,0.77754349,3805.1,3805.0,3.80871389]
[1733328838393,0.52554973,3805.3,3805.0,3.80871389]
[1733328838906,0.52554973,3805.3,3805.0,4.80871389]
[1733328840305,0.52554973,3805.3,3805.0,7.43681389]
[1733328840507,0.52554973,3805.3,3805.0,4.80871389]
[1733328841241,2.62805,3805.1,3805.0,4.80871389]
[1733328841418,3.34856656,3805.1,3805.0,3.25079465]
[1733328841736,3.34856656,3805.1,3805.0,2.46666741]
[1733328842107,3.73380132,3805.1,3805.0,2.46666741]
[1733328842308,3.73380132,3805.1,3805.0,1.03790215]
[1733328842524,2.62874,3804.1,3803.2,1.5905]
[1733328842694,2.62825,3804.8,3802.7,1.5183]
[1733328842897,2.62853,3804.5,3803.2,2.6293]
[1733328843134,3.0293987,3804.8,3802.8,2.62964]
[1733328843445,0.40503688,3804.7,3803.2,2.62929]
[1733328843611,2.62854,3804.4,3803.2,2.62929]
[1733328844143,2.62854,3804.4,3802.8,2.62964]
[1733328844144,2.62854,3804.4,3803.3,2.62926]
[1733328844839,0.4011487,3804.2,3802.7,4.5183]
[1733328844998,0.16429394,3804.1,3803.5,2.62915]
[1733328845208,0.16429394,3804.0,3803.5,2.62909]
[1733328845544,0.16429394,3803.9,3803.3,2.62928]
[1733328845838,0.4011487,3804.2,3803.6,2.62902]
[1733328846058,0.51289734,3803.7,3802.8,0.55]
[1733328846342,0.51289734,3803.7,3803.4,2.62921]
[1733328846523,0.51289734,3803.7,3802.8,0.55]
[1733328846927,0.51289734,3803.7,3803.4,2.62918]
[1733328847108,0.51289734,3803.7,3803.4,2.62922]
[1733328847517,0.51289734,3803.7,3803.5,2.62914]
[1733328847752,0.51289734,3803.7,3803.0,2.6295]
[1733328847926,0.51289734,3803.7,3802.8,3.55]
[1733328848305,0.51289734,3803.7,3803.1,2.62942]
[1733328848505,0.51289734,3803.7,3803.2,2.62935]
[1733328848803,0.51289734,3803.7,3802.8,0.55]
[1733328849023,0.51289734,3803.7,3803.6,2.62908]
[1733328849221,0.51289734,3803.7,3803.2,0.55]
[1733328849543,0.51289734,3803.7,3803.2,2.6293]
[1733328849748,0.51289734,3803.7,3803.3,2.62923]
[1733328849948,0.51289734,3803.7,3803.5,2.62915]
[1733328850115,0.51289734,3803.7,3803.4,2.62918]
[1733328850321,0.51289734,3803.7,3803.5,2.62914]
[1733328850634,0.51289734,3803.7,3803.3,2.62928]
[1733328850821,0.51289734,3803.7,3803.4,2.62921]
[1733328851022,0.48199734,3803.7,3802.8,2.8249663]
[1733328851222,0.48199734,3803.7,3803.1,2.62936]
[1733328851540,0.48199734,3803.7,3803.0,2.62948]
[1733328852264,0.48199734,3803.7,3802.8,2.62962]
[1733328852426,0.16431151,3803.6,3802.6,0.1636856]
[1733328852626,0.16431151,3803.5,3802.9,2.62956]
[1733328852962,2.62915,3803.6,3802.6,0.1636856]
[1733328853271,0.16432379,3803.5,3802.6,0.1636856]
[1733328853561,0.16432379,3803.4,3802.6,0.1636856]
[1733328853729,3.11102734,3803.7,3802.6,0.1636856]
[1733328853730,2.6291,3803.6,3802.6,0.1636856]
[1733328854064,0.88274702,3803.7,3802.6,0.1636856]
[1733328854065,0.48199734,3803.7,3802.6,0.1636856]
[1733328854382,0.51612427,3803.1,3802.7,2.62971]
[1733328854520,0.51612427,3803.1,3803.0,2.6295]
[1733328854720,0.51612427,3803.1,3802.8,5.62962]
[1733328854959,0.51612427,3803.1,3802.6,0.1636856]
[1733328854960,0.51612427,3803.1,3802.7,3.0]
[1733328855160,0.51612427,3803.1,3802.8,2.62963]
[1733328855332,0.51612427,3803.1,3802.6,0.1636856]
[1733328855657,0.51612427,3803.1,3802.8,2.62961]
[1733328856170,0.51612427,3803.1,3802.6,0.1636856]
[1733328856171,0.51612427,3803.1,3802.6,2.7934456]
[1733328856698,0.51612427,3803.1,3802.7,0.262]
[1733328858773,0.31455543,3803.0,3802.7,0.262]
[1733328859379,0.51612427,3803.1,3802.7,0.262]
[1733328859694,0.16434471,3803.0,3802.7,0.262]
[1733328859861,0.51612427,3803.1,3802.7,0.262]
[1733328860190,0.40086929,3802.8,3802.7,0.262]
[1733328860398,0.16432867,3802.8,3802.7,0.262]
[1733328860748,0.56539921,3802.8,3802.7,0.262]
[1733328861264,0.16432867,3802.8,3802.7,0.262]
[1733328861662,0.51612427,3803.1,3802.7,0.262]
[1733328861868,0.40112439,3802.8,3802.7,0.262]
[1733328862171,0.1643402,3802.8,3802.7,0.262]
[1733328863589,0.51612427,3803.1,3802.7,2.89171]
[1733328863901,0.51612427,3803.1,3802.8,2.62963]
[1733328864192,0.1643043,3803.0,3802.7,0.262]
[1733328864356,0.1643043,3802.9,3802.8,2.62962]
[1733328864898,0.91743025,3803.1,3802.8,2.62962]
[1733328865066,0.51612427,3803.1,3802.7,2.62968]
[1733328865781,0.16433001,3803.0,3802.7,2.6297]
[1733328865958,0.51612427,3803.1,3802.6,0.1636856]
[1733328866292,0.16433601,3803.0,3802.8,2.62963]
[1733328866494,0.51612427,3803.1,3802.6,0.1636856]
[1733328866652,0.1643306,3803.0,3802.6,0.1636856]
[1733328866856,0.1643306,3802.9,3802.6,0.1636856]
[1733328867090,0.51612427,3803.1,3802.6,0.1636856]
[1733328867091,0.1643306,3802.8,3802.6,0.1636856]
[1733328867289,0.1643306,3802.7,3802.6,0.1636856]
[1733328867674,0.40553841,3802.7,3802.6,0.1636856]
[1733328868254,3.03527841,3802.7,3802.2,0.04]
[1733328868454,0.24120781,3802.6,3802.2,0.04]
[1733328868680,0.74766538,3802.5,3802.2,0.04]
[1733328868896,0.79152967,3802.4,3802.2,0.04]
[1733328869203,0.34212697,3802.5,3802.2,0.04]
[1733328869204,0.79152967,3802.3,3802.2,0.04]
[1733328871359,0.79152967,3802.3,3801.7,0.75]
[1733328871569,3.18039186,3802.2,3801.7,0.75]
[1733328871779,2.63019,3802.0,3801.7,0.75]
[1733328872003,0.40553841,3801.9,3801.7,0.75]
[1733328872185,0.40553841,3801.8,3801.7,0.75]
[1733328872877,1.31662736,3801.8,3801.7,0.75]
[1733328873181,1.31662736,3801.8,3801.2,0.005]
[1733328873367,0.9450116,3801.7,3801.2,0.005]
[1733328873572,0.79152967,3801.6,3801.2,0.005]
[1733328873818,0.79152967,3801.5,3801.2,0.005]
[1733328873976,0.24120781,3801.4,3801.2,0.005]
[1733328874318,0.24120781,3801.3,3801.2,0.005]
[1733328874523,0.40553841,3801.3,3801.2,0.005]
[1733328874701,0.52509769,3801.8,3801.2,0.005]
[1733328874886,0.3852391,3801.7,3801.4,2.63054]
[1733328875216,0.3852391,3801.6,3801.2,1.5058]
[1733328875371,0.3852391,3801.6,3801.4,2.63059]
[1733328875572,0.62602913,3801.5,3801.4,2.63059]
[1733328875777,0.62602913,3801.5,3801.2,1.5058]
[1733328875778,0.62602913,3801.5,3801.2,0.005]
[1733328876018,0.62602913,3801.4,3801.2,0.005]
[1733328876310,0.52509769,3801.8,3801.2,0.005]
[1733328876311,0.62602913,3801.3,3801.2,2.63574]
[1733328877094,0.62602913,3801.3,3801.2,0.005]
[1733328880433,0.62602913,3801.3,3801.2,2.63574]
[1733328880731,0.62602913,3801.3,3801.2,0.005]
[1733328880732,0.625927,3801.3,3801.2,0.005]
[1733328881437,0.625927,3801.3,3801.2,2.63574]
[1733328881622,0.625927,3801.3,3801.2,0.005]
[1733328881825,0.625927,3801.3,3801.2,2.63574]
[1733328882132,0.625927,3801.3,3801.2,0.005]
[1733328882428,1.02715236,3801.3,3801.2,0.005]
[1733328882792,0.790342,3801.3,3801.2,0.005]
[1733328883192,1.19166826,3801.3,3801.2,0.005]
[1733328883420,0.790342,3801.3,3801.2,0.005]
[1733328883999,0.79046954,3801.3,3801.2,0.005]
[1733328884652,3.42113954,3801.3,3801.2,0.005]
[1733328884933,4.02817465,3801.3,3801.2,0.005]
[1733328885135,4.41339091,3801.3,3798.7,1.8853]
[1733328885299,0.40122866,3800.0,3799.2,2.63211]
[1733328885608,0.79046954,3799.9,3799.5,2.63189]
[1733328885995,0.79046954,3799.9,3798.7,1.6233]
[1733328886204,0.79046954,3799.9,3798.3,0.41957938]
[1733328886205,0.79046954,3799.9,3799.8,3.38171]
[1733328886409,0.79046954,3799.9,3799.8,0.75]
[1733328886812,0.79046954,3799.9,3799.8,3.38171]
[1733328887221,0.78990519,3799.9,3799.8,3.38171]
[1733328887426,0.72178672,3800.9,3800.3,2.63137]
[1733328887629,0.72178672,3800.9,3799.9,1.5948]
[1733328887924,0.80628209,3801.0,3799.8,0.75]
[1733328887925,2.63111,3800.7,3799.8,0.75]
[1733328888125,0.535835,3800.4,3799.8,0.75]
[1733328888634,0.34075281,3800.3,3799.8,0.75]
[1733328889950,0.77623859,3800.4,3799.8,0.75]
[1733328890246,0.535835,3800.4,3799.8,0.75]
[1733328890549,2.63148,3800.2,3799.8,0.75]
[1733328891351,2.63139,3800.3,3799.8,0.75]
[1733328891845,0.535835,3800.4,3799.8,0.75]
[1733328892140,0.55691632,3800.3,3799.8,0.75]
[1733328892441,0.535835,3800.4,3799.8,0.75]
[1733328892643,0.40019932,3800.3,3799.8,0.75]
[1733328892811,0.40019932,3800.2,3799.8,0.75]
[1733328893013,0.40019932,3800.1,3799.8,0.75]
[1733328893857,0.40019932,3800.2,3799.8,0.5]
[1733328894017,1.49380275,3800.1,3799.8,0.5]
[1733328894230,1.09360343,3800.1,3799.8,0.5]
[1733328894633,1.49380275,3800.1,3799.8,0.5]
[1733328895485,0.16448222,3800.0,3799.8,0.5]
[1733328895653,0.16448222,3799.9,3799.8,0.5]
[1733328895807,0.33031072,3799.9,3799.8,0.5]
[1733328897048,0.33031072,3799.9,3798.9,2.63233]
[1733328897357,0.33031072,3799.9,3798.8,0.1636856]
[1733328897358,0.54915492,3799.8,3798.8,0.1636856]
[1733328897558,0.54915492,3799.7,3798.8,0.1636856]
[1733328897901,0.54915492,3799.6,3798.8,0.1636856]
[1733328898059,0.54915492,3799.5,3798.8,0.1636856]
[1733328898267,0.54915492,3799.4,3798.8,0.1636856]
[1733328898553,0.3846727,3799.3,3798.9,2.63233]
[1733328898757,0.3846727,3799.2,3799.1,2.6322]
[1733328899055,0.1658285,3799.9,3798.8,0.1636856]
[1733328899360,0.40019932,3799.4,3798.8,0.1636856]
[1733328899573,0.78972509,3799.3,3798.8,0.1636856]
[1733328899719,0.78972509,3799.2,3798.8,0.1636856]
[1733328899918,0.78972509,3799.1,3798.8,0.1636856]
[1733328900113,0.16596312,3799.8,3798.3,0.005]
[1733328900114,0.62523977,3799.0,3798.4,2.2963256]
[1733328900318,0.62523977,3798.9,3798.8,2.63237]
[1733328901213,0.24049414,3798.9,3798.8,2.63237]
[1733328901415,0.24049414,3798.9,3798.8,4.23627]
[1733328901886,0.53703566,3799.2,3799.1,2.6322]
[1733328902037,0.77750927,3799.2,3799.1,2.6322]
[1733328903971,0.77750927,3799.2,3798.4,3.0]
[1733328903972,1.16273978,3799.2,3798.4,1.5619]
[1733328904177,1.17570412,3799.1,3798.3,0.005]
[1733328904331,0.53703566,3799.2,3798.3,0.005]
[1733328904332,0.55,3798.9,3798.3,0.005]
[1733328904536,0.55,3798.7,3798.3,0.005]
[1733328904782,0.62556675,3798.6,3798.5,2.63261]
[1733328904946,0.24047361,3798.6,3798.5,2.63261]
[1733328905550,0.23923993,3798.6,3798.5,2.63261]
[1733328906051,10.0,3799.0,3798.9,4.17874]
[1733328906537,8.68386,3799.0,3798.9,4.17874]
[1733328906747,0.40019932,3799.8,3799.7,4.17818]
[1733328907088,0.78507424,3799.8,3799.7,4.17818]
[1733328907376,0.54932473,3799.8,3799.7,4.17818]
[1733328907784,9.32e-06,3800.0,3799.9,2.63164]
[1733328908004,9.32e-06,3800.0,3799.9,7.13624]
[1733328908205,0.24067968,3800.9,3800.8,2.63102]
[1733328908369,0.8071662,3801.3,3801.2,2.63074]
[1733328910364,0.8071662,3801.3,3801.2,7.25184]
[1733328910865,0.25968514,3801.8,3801.7,2.6304]
[1733328911069,0.25968514,3801.8,3801.7,4.2515]
[1733328912305,0.78766796,3801.8,3801.7,4.2515]
[1733328912607,0.38505722,3803.2,3802.8,2.62962]
[1733328912911,0.38505722,3803.2,3802.2,3.0]
[1733328913070,0.40407233,3803.2,3803.1,2.62943]
[1733328913582,0.55273287,3803.2,3803.1,2.62943]
[1733328914281,0.55273287,3803.2,3802.8,2.62958]
[1733328914606,0.55273287,3803.2,3803.0,2.62949]
[1733328914902,0.55273287,3803.2,3803.1,4.27053]
[1733328915099,0.40078532,3805.0,3803.9,1.6411]
[1733328915900,0.40078532,3805.0,3802.7,2.62967]
[1733328915901,0.40078532,3805.0,3803.2,2.62934]
[1733328916055,2.62858,3804.4,3802.9,2.62952]
[1733328916256,0.262858,3804.3,3802.6,1.6411]
[1733328916500,11.58254148,3804.9,3802.9,2.62957]
[1733328916791,11.58254148,3804.9,3802.6,1.6411]
[1733328916792,2.62865,3804.3,3802.6,1.6411]
[1733328916993,0.55,3804.1,3802.6,1.6411]
[1733328917223,0.55,3804.1,3802.5,3.0]
[1733328917358,2.62889,3803.9,3802.5,2.62982]
[1733328917558,0.55,3803.7,3802.2,1.5126]
[1733328917755,0.55,3803.7,3803.2,4.14193]
[1733328918085,0.55,3803.7,3803.4,2.62921]
[1733328918293,0.55,3803.7,3803.2,1.5126]
[1733328918663,0.55,3803.7,3803.4,2.62919]
[1733328918863,23.31,3805.3,3803.2,1.5126]
[1733328919065,2.5960203,3805.0,3804.0,2.62877]
[1733328920540,0.55,3804.9,3803.4,1.6198]
[1733328920664,0.55,3804.4,3803.1,4.24922]
[1733328921008,0.55,3804.4,3802.2,4.17515]
[1733328921300,3.17931,3803.3,3802.2,1.5451]
[1733328921539,2.62893,3803.9,3802.5,2.62981]
[1733328921540,0.55,3803.1,3802.5,2.62981]
[1733328921712,0.55,3803.1,3802.2,1.57139493]
[1733328921900,0.55,3803.1,3803.0,2.6295]
[1733328922563,0.55,3803.1,3803.0,4.2481]
[1733328922762,0.55,3803.4,3803.0,1.6186]
[1733328923022,0.55,3803.4,3803.3,2.62929]
[1733328923166,2.5960203,3805.0,3803.4,2.62922]
[1733328923365,2.5960203,3805.0,3803.1,0.0262922]
[1733328923366,2.5960203,3804.9,3803.1,0.02628734]
[1733328923671,2.5960203,3804.9,3804.0,1.6476]
[1733328925110,2.5960203,3804.9,3802.7,2.62967]
[1733328925111,5.2242203,3804.9,3803.7,2.629]
[1733328925402,0.2,3804.3,3803.3,3.0]
[1733328925628,0.55,3804.2,3801.6,0.27746565]
[1733328925769,0.75,3803.7,3803.2,2.62936]
[1733328925964,0.55,3803.7,3803.6,2.62908]
[1733328926377,0.1,3804.8,3803.4,2.62922]
[1733328926706,0.50920406,3804.7,3803.2,2.62936]
[1733328926871,0.50920406,3804.7,3804.4,2.62851]
[1733328927072,0.50920406,3804.7,3804.6,2.62839]
[1733328927888,1.03273205,3804.7,3804.6,2.62839]
[1733328928098,26.64,3805.1,3805.0,2.62812]
[1733328928513,26.64,3805.1,3805.0,4.27792]
[1733328928718,16.26201565,3805.1,3805.0,4.27792]
[1733328928913,14.94366931,3805.1,3805.0,7.27792]
[1733328929214,14.94366931,3805.1,3804.4,2.62853]
[1733328929388,0.1,3804.9,3804.0,1.6498]
[1733328929736,0.3,3804.3,3802.7,1.6498]
[1733328930021,4.2110203,3805.0,3802.7,1.6498]
[1733328930022,0.3,3803.8,3802.7,1.6498]
[1733328930224,0.55,3803.4,3802.7,1.6498]
[1733328930425,0.55,3803.4,3802.6,2.62976]
[1733328930576,0.55,3802.9,3802.3,2.62992]
[1733328930776,0.55,3802.4,3801.6,1.5553]